Cogmind - Beta 13 @@@ ROGUE MODE // 2024.04.20 @ 22:54:08 Player: leiavoia Result: Destroyed by G-73 Enforcer with Phase Gun Performance ------------- Evolutions (9) 4500 Regions Visited (29) 5800 Robots Destroyed (331) 1655 Value Destroyed (10934) 10934 Prototype IDs (81) 1620 Alien Tech Used (4) 800 Bonus (23276) 23276 TOTAL SCORE: 48585 Bonus ------- High Alert Combat Kills 781 Follower Combat Kills 2494 Network Hubs Disabled 400 Met Zhirov 300 Met Warlord at Base 500 MAIN.C Attacked Warlord 500 Warlord Defense Kills 2464 Built Enhanced Grunts 300 A7 Reached Mainframe 300 Met R17 at Cetus 500 Hacked Protovariant 500 Met R17 at Research 2000 Met Warlord at Research 2000 Destroyed MAIN.C Guards 500 Met MAIN.C 5000 Hacked MAIN.C 300 Destroyed MAIN.C Shell 5000 Met Warlord at Command 2000 Friendly Fire -2563 Cogmind --------- Core Integrity 0/1600 Matter 280/300 Energy 79/100 System Corruption 30% Temperature Cool (20) Movement Hovering (60) Location -1/Command Parts ------- > --- POWER (3) -------- (None) > --- PROPULSION (9) --- Combat Linear Gravjet > --- UTILITY (10) ----- Advanced Target Analyzer > --- WEAPON (3) ------- Enhanced Nova Cannon > --- INVENTORY (5) ---- Medium Matter Pod (100) Matter Filter Advanced Remote Datajack Advanced Remote Datajack Peak State ------------ > --- POWER ------------ Light Antimatter Reactor Light Quantum Reactor Light Quantum Reactor > --- PROPULSION ------- Cooled Gravmag System Cooled Gravmag System Cooled Antigrav System Combat Linear Gravjet Combat Linear Gravjet Combat Linear Gravjet Combat Linear Gravjet Combat Linear Gravjet Combat Linear Gravjet > --- UTILITY ---------- Advanced Cooling System Large Storage Unit Advanced Target Analyzer Layered Heavy Armor Plating Advanced Force Field Point Defense Array Point Defense Array Advanced Hacking Suite Advanced Hacking Suite > --- WEAPON ----------- Vortex Rifle Perforator > --- INVENTORY -------- Micro Antimatter Reactor Combat Linear Gravjet Combat Linear Gravjet Long-range Tractor Beam Transdimensional Reconstructor Subatomic Replicator Enhanced Nova Cannon Heavy Gauss Cannon Light Antimatter Cannon Hellfire Missile Launcher Advanced Datajack Gravity Flail [Rating: 206] Favorites ----------- Power Vortex Chain Reactor Engine Ion Engine Power Core Micro Fission Core Reactor Vortex Chain Reactor Propulsion Combat Gravmag System Hover Unit Combat Gravmag System Utility Large Storage Unit Device Structural Scanner Storage Large Storage Unit Processor Advanced Signal Interpreter Hackware Advanced Hacking Suite Protection Advanced Powered Armor Artifact Phase Redirector Weapon Improved Light Cannon Energy Gun Medium Laser Energy Cannon Advanced Plasma Cannon Ballistic Gun Advanced KE Penetrator Ballistic Cannon Improved Light Cannon Launcher Precision Rocket Launcher Special Weapon RU-N14's Throwing Claymores v3 Impact Weapon Thunder Hammer Slashing Weapon Greatsword Special Melee Weapon Advanced Datajack Build | -11 -10 -10 -10 -9 -8 -7 -6 -6 -6 -6 -6 -5 -5 -5 -5 -5 -5 -4 -4 -4 -4 -4 -3 -3 -3 -2 -2 -1 -1 ------- Run | Yrd Mat Min Exi Min Mat Fac Fac Ext Cet Arc Hub Fac Was Fac Upp Upp Zhi Pro Fac Upp Upp War Pro Res Tes Res Qua Acc Com Slots Evolved 18 | . . . . . 4 2 2 . . . . 2 . . . . . . 2 . . . . 2 . 2 . 2 . Power 2 | . . . . . . . . . . . . . . . . . . . 1 . . . . . . 1 . . . Propulsion 7 | . . . . . 2 1 1 . . . . . . . . . . . 1 . . . . 1 . . . 1 . Utility 8 | . . . . . 2 1 1 . . . . 2 . . . . . . . . . . . 1 . 1 . . . Weapon 1 | . . . . . . . . . . . . . . . . . . . . . . . . . . . . 1 . Parts Attached 564 | 4 18 8 . 4 30 47 52 31 5 14 6 3 . 68 6 9 7 1 57 4 4 25 5 21 21 34 12 8 60 Power 39 | 1 2 1 . 1 2 3 4 1 . 1 . . . 5 . . 2 . 4 . 1 1 . . . 1 1 . 8 Engine 18 | 1 2 1 . 1 1 3 2 1 . 1 . . . 2 . . . . . . . . . . . . . . 3 Core 10 | . . . . . 1 . 2 . . . . . . 2 . . 1 . 4 . . . . . . . . . . Reactor 11 | . . . . . . . . . . . . . . 1 . . 1 . . . 1 1 . . . 1 1 . 5 Propulsion 79 | . 2 1 . . 4 6 9 2 1 5 1 . . 14 . . . . 11 1 . 3 . 1 3 4 . 4 7 Treads . | . . . . . . . . . . . . . . . . . . . . . . . . . . . . . . Leg . | . . . . . . . . . . . . . . . . . . . . . . . . . . . . . . Wheel . | . . . . . . . . . . . . . . . . . . . . . . . . . . . . . . Hover 79 | . 2 1 . . 4 6 9 2 1 5 1 . . 14 . . . . 11 1 . 3 . 1 3 4 . 4 7 Flight . | . . . . . . . . . . . . . . . . . . . . . . . . . . . . . . Utility 262 | 1 5 5 . . 12 29 19 7 3 6 5 3 . 32 3 7 4 . 33 1 3 9 3 15 7 19 9 2 20 Device 137 | 1 . 1 . . 6 14 7 2 . 3 2 2 . 18 1 4 4 . 18 1 3 4 1 8 7 13 5 1 11 Storage 13 | . 2 1 . . . 2 3 . . . . . . 1 . . . . 1 . . . . 1 . . . . 2 Processor 5 | . . . . . . . 1 . . . . . . . . . . . 1 . . 1 . . . 1 . . 1 Hackware 34 | . . . . . 1 6 2 1 . 3 1 1 . 7 . . . . 7 . . . 2 2 . 1 . . . Protection 71 | . 3 3 . . 5 7 6 4 3 . 2 . . 6 2 3 . . 6 . . 4 . 4 . 4 2 1 6 Artifact 2 | . . . . . . . . . . . . . . . . . . . . . . . . . . . 2 . . Weapon 184 | 2 9 1 . 3 12 9 20 21 1 2 . . . 17 3 2 1 1 9 2 . 12 2 5 11 10 2 2 25 Energy Gun 10 | 1 3 . . . . . . . . . . . . . . . . . . . . 2 . . 1 . . . 3 Energy Cannon 16 | . . . . . 1 . 1 . . . . . . 1 . . . 1 2 . . . . . 2 1 . 1 6 Ballistic Gun 2 | 1 . . . . . . . . 1 . . . . . . . . . . . . . . . . . . . . Ballistic Cannon 69 | . 5 1 . 2 5 4 5 3 . 1 . . . 4 2 1 . . 4 1 . 6 1 3 5 6 1 1 8 Launcher 41 | . 1 . . . 2 2 5 9 . . . . . 6 1 . 1 . 2 1 . 1 1 1 1 2 1 . 4 Special Weapon 4 | . . . . . . . . . . . . . . . . . . . . . . 3 . . . . . . 1 Impact Weapon 9 | . . . . . . . . . . . . . . 2 . . . . 1 . . . . 1 2 1 . . 2 Slashing Weapon 29 | . . . . 1 4 3 9 9 . 1 . . . 2 . . . . . . . . . . . . . . . Piercing Weapon . | . . . . . . . . . . . . . . . . . . . . . . . . . . . . . . Special Melee Weapon 4 | . . . . . . . . . . . . . . 2 . 1 . . . . . . . . . . . . 1 Unidentified Prototypes 31 | . . . . . 1 1 1 . 2 . . . . 3 . . 3 . . . . 7 . 4 3 2 2 . 2 Corrupted Parts 2 | . . 1 . . . . . . 1 . . . . . . . . . . . . . . . . . . . . System Corruption 10 | . . 5 . . . . . . 5 . . . . . . . . . . . . . . . . . . . . Parts Lost 73 | . 1 . . . 9 3 8 3 . . . . . 3 . . . . 7 . . . . 1 . . . . 38 Power 13 | . . . . . 2 . 2 1 . . . . . 1 . . . . . . . . . . . . . . 7 Propulsion 23 | . 1 . . . 4 3 2 . . . . . . 1 . . . . 2 . . . . . . . . . 10 Utility 29 | . . . . . 3 . 3 2 . . . . . 1 . . . . 4 . . . . . . . . . 16 Weapon 8 | . . . . . . . 1 . . . . . . . . . . . 1 . . . . 1 . . . . 5 Highest Loss Streak 27 | . 1 . . . 4 1 4 1 . . . . . 1 . . . . 6 . . . . 1 . . . . 27 To Critical Strikes . | . . . . . . . . . . . . . . . . . . . . . . . . . . . . . . Average Slot Usage (%) 92 | . 80 87 88 100 80 73 91 96 99 94 99 100 100 99 100 100 100 100 97 100 98 94 94 93 94 94 94 95 91 Engine 4 | . 14 14 14 14 6 6 1 6 6 6 6 5 5 3 . . . . . . . . . . . . . . 1 Core 2 | . . . . . 1 . 4 . . . . . . . 5 5 5 5 10 10 9 2 . . . . . . . Reactor 1 | . . . . . . . . . . . . . . 1 . . . . . . . 5 5 4 4 7 8 8 7 Hover 30 | . 9 16 28 28 21 19 39 40 40 40 40 35 35 35 35 35 35 35 35 36 36 36 36 38 38 34 34 35 34 Device 9 | . 1 . . . 8 11 7 10 . 4 1 11 11 10 11 11 11 11 8 18 19 19 20 11 14 17 13 16 13 Storage 7 | . 13 14 14 14 9 7 6 6 6 6 6 5 5 5 5 5 5 5 5 5 5 5 5 4 4 4 4 4 5 Processor 3 | . . . . . . . 3 6 6 6 6 5 5 5 5 5 5 5 6 5 5 5 5 4 4 4 4 4 2 Hackware 9 | . . . . . 1 16 18 3 6 10 22 22 23 21 11 11 11 11 13 . . . . 10 14 13 13 12 9 Protection 7 | . 12 13 14 14 14 1 1 9 20 10 1 . . 2 10 11 11 11 5 11 10 10 9 8 2 3 7 3 5 Ballistic Cannon 7 | . 18 28 16 27 10 . . 2 7 2 6 5 5 4 5 4 3 . 1 3 5 3 1 3 3 3 3 4 4 Impact Weapon 2 | . . . . . . . . . . . . . . 1 5 5 5 5 4 5 5 5 5 4 3 3 4 4 2 Slashing Weapon 1 | . . . . . 5 6 5 6 . 4 6 5 5 3 . . . . . . . . . . . . . . . Naked Turns . | . . . . . . . . . . . . . . . . . . . . . . . . . . . . . . Heaviest Build 130 | 9 23 26 26 26 37 37 49 58 69 68 51 53 46 69 80 67 71 67 77 79 76 93 98 86 96 118 113 106 130 Greatest Support 119 | 3 12 12 12 12 26 55 64 60 56 59 60 56 56 79 79 79 79 79 96 86 86 89 89 100 100 99 99 115 119 Greatest Overweight (x) 10 | 2 7 4 2 2 10 2 . 1 1 1 . . . 1 1 . . . . . . 1 1 . . 1 1 1 1 Average Overweight (x) . | 1 2 2 1 1 1 . . . 1 . . . . . . . . . . . . . . . . . . . . Largest Inventory Capacity 20 | 5 8 10 10 10 10 10 15 15 15 15 15 15 15 15 15 15 15 15 15 15 15 15 15 20 15 15 15 15 15 Average Capacity 12 | 5 7 8 10 10 10 8 11 15 15 15 15 15 15 15 15 15 15 15 15 15 15 15 15 15 15 15 15 15 14 Most Carried 15 | 4 8 8 10 10 10 10 15 15 15 15 15 13 14 15 15 15 15 15 15 15 15 15 15 15 15 15 15 15 15 Average Carried 12 | 3 7 7 8 9 9 8 10 14 14 14 14 11 12 14 15 15 14 15 14 14 14 14 15 14 14 14 14 14 13 Final Capacity 15 | 5 8 10 10 10 10 8 15 15 15 15 15 15 15 15 15 15 15 15 15 15 15 15 15 15 15 15 15 15 5 Final Carried 15 | 4 8 8 10 10 10 8 15 15 15 15 14 10 14 15 15 15 15 15 15 15 15 15 15 15 14 15 15 15 4 Class Distribution -------------------- 24% | Mutant 17% | Hacker-Mutant 12% | Machinist-Scout 12% | Hacker-Scout 8% | Scavenger-Mutant 6% | Hacker-Ninja 3% | Machinist-Ninja 3% | Machinist-Assassin 3% | Commander-Mutant Dominant Class ---------------- Mutant | -10/Materials Mutant | -10/Mines Mutant | -10/Exiles Mutant | -9/Mines Mutant | -8/Materials Scavenger-Mutant | -7/Factory Hacker-Mutant | -6/Factory Scavenger-Mutant | -6/Extension Commander-Mutant | -6/Cetus Commander-Mutant | -6/Archives Scavenger-Mutant | -6/Hub_04(d) Scavenger-Scout | -5/Factory Scavenger-Scout | -5/Waste Hacker-Scout | -5/Factory Machinist-Scout | -5/Upper Caves Hacker-Scout | -5/Upper Caves Hacker-Scout | -5/Zhirov Hacker-Scout | -4/Proximity Caves Hacker-Mutant | -4/Factory Machinist-Scout | -4/Upper Caves Machinist-Scout | -4/Upper Caves Machinist-Scout | -4/Warlord Machinist-Assassin | -3/Proximity Caves Machinist-Ninja | -3/Research Hacker-Mutant | -3/Testing Hacker-Ninja | -2/Research Hacker-Ninja | -2/Quarantine Hacker-Ninja | -1/Access Hacker-Sprinter | -1/Command Resources | -11 -10 -10 -10 -9 -8 -7 -6 -6 -6 -6 -6 -5 -5 -5 -5 -5 -5 -4 -4 -4 -4 -4 -3 -3 -3 -2 -2 -1 -1 ----------- Run | Yrd Mat Min Exi Min Mat Fac Fac Ext Cet Arc Hub Fac Was Fac Upp Upp Zhi Pro Fac Upp Upp War Pro Res Tes Res Qua Acc Com Matter Collected 11819 | 263 370 246 . 162 733 561 902 1081 122 214 36 . . 1171 361 148 80 10 659 119 258 262 161 387 346 505 630 99 1933 Remotely 443 | . . . . . . . . . . . . . . . . . . . . . . . . . . . . . 443 Salvage Created 13232 | 155 551 88 . 268 815 726 1240 1764 11 266 . . . 1535 181 37 285 136 858 82 122 364 119 873 259 344 652 281 1220 Parts 456 | 10 27 10 . 16 39 33 66 58 . 23 . . . 55 2 1 . 1 19 5 2 3 5 9 7 5 8 11 41 Haulers Intercepted 24 | . 1 . . . 2 2 3 3 . . . . . 3 . . . . 1 . . . . 4 1 2 1 1 . Recyclers Shooed 14 | 1 1 . . . 1 2 4 2 . . . . . 1 . . . . . . . . . 2 . . . . . Parts Field Recycled . | . . . . . . . . . . . . . . . . . . . . . . . . . . . . . . Retrieved Matter . | . . . . . . . . . . . . . . . . . . . . . . . . . . . . . . Parts Self-Destructed 30 | . . . . . . . . . . . . . . . 11 1 . . . 3 8 . 7 . . . . . . Prevented 14 | . . . . . . . . . . . . . . . 7 . . . . . . . 7 . . . . . . Kills | -11 -10 -10 -10 -9 -8 -7 -6 -6 -6 -6 -6 -5 -5 -5 -5 -5 -5 -4 -4 -4 -4 -4 -3 -3 -3 -2 -2 -1 -1 ------- Run | Yrd Mat Min Exi Min Mat Fac Fac Ext Cet Arc Hub Fac Was Fac Upp Upp Zhi Pro Fac Upp Upp War Pro Res Tes Res Qua Acc Com Combat Hostiles Destroyed 163 | . 13 . . 1 18 9 9 26 . . . . . 18 1 . . . 13 4 2 17 3 1 3 5 5 . 15 Melee 8 | . . . . . 2 2 2 2 . . . . . . . . . . . . . . . . . . . . . Guns 3 | . 3 . . . . . . . . . . . . . . . . . . . . . . . . . . . . Cannons 37 | . 10 . . 1 10 2 2 1 . . . . . . 1 . . . 1 . 2 2 . 1 . 1 . . 3 AOE 107 | . . . . . 6 5 5 23 . . . . . 18 . . . . 6 4 . 15 3 . 3 4 5 . 10 Classes Destroyed 24 | 3 5 1 . . 1 3 . 3 . . . . . . 2 . . . 1 . . 3 . . . . 1 . 1 Worker 26 | 1 1 . . 1 1 4 1 . . . . . . 4 . . . . 4 . . . . 1 3 3 1 . 1 Builder 20 | . . 1 . 1 1 . 7 3 . . . . . 3 . . . . 2 . . . . . 2 . . . . Tunneler 10 | 3 . 2 . 1 . . 3 1 . . . . . . . . . . . . . . . . . . . . . Hauler 24 | . 1 . . . 2 2 3 3 . . . . . 3 . . . . 1 . . . . 4 1 2 1 1 . Recycler 36 | 1 2 1 . 1 1 2 5 7 . . . . . 7 . . . . 2 . . . . 3 . . 2 1 1 Minesweeper 2 | . . . . . . . . . . . . . . . 1 1 . . . . . . . . . . . . . Mechanic 3 | . . . . . . 1 . 1 . . . . . . . . . . . . . . . . . . . . 1 Operator 17 | . 1 . . . 3 1 1 . . 8 . . . 1 . . . . 2 . . . . . . . . . . Watcher 23 | . 3 . . . 3 2 1 1 1 . . . . 3 . . . . 1 . . . . 2 2 . 3 1 . Swarmer 64 | . 6 . . 1 3 4 3 13 . . . . . 10 . . . . 4 4 . . 3 . . 4 3 . 6 Cutter 4 | . . . . . . . . . . . . . . . . . . . 4 . . . . . . . . . . Grunt 51 | . 7 . . 1 8 1 4 6 . . . . . 1 1 . . . 3 . 2 12 . 1 1 . . . 3 Brawler 2 | . . . . . . . . 1 . . . . . 1 . . . . . . . . . . . . . . . Duelist 1 | . . . . . . . . 1 . . . . . . . . . . . . . . . . . . . . . Protector 2 | . . . . . . . . . . . . . . . . . . . . . . 2 . . . . . . . Sentry 12 | . . . . . 7 1 . 3 . . . . . . . . . . . . . . . . . 1 . . . Specialist 2 | . . . . . . . . 2 . . . . . . . . . . . . . . . . . . . . . Hunter 6 | . . . . . . 1 . . . . . . . 2 . . . . . . . . . . . . . . 3 Programmer 16 | . . . . . . 2 2 . . . . . . 4 . . . . 2 . . . . . 2 . 2 . 2 Behemoth 2 | . . . . . . . . . . . . . . . . . . . . . . 1 . . . . . . 1 Striker 2 | . . . . . . . . . . . . . . . . . . . . . . 2 . . . . . . . Samaritan 3 | . . . . . . . . . . . . . . . 2 . . . . 1 . . . . . . . . . Wasp 1 | . . . . . . . . . . . . . . . . . . . . . . . . . . . . . 1 Thug 1 | . . . . . . . . . . . . . . . . . . . . . . . . . . . . . 1 Martyr 2 | . . . . . . . . . . . . . . . . . . . . . . . . . . . . . 2 Fireman 1 | . . . . . . . . . . . . . . . . . . . . . . . . . . . 1 . . Best Kill Streak 24 | 3 3 1 . 2 7 6 13 24 1 5 . . . 7 1 1 . . 5 4 1 9 3 2 6 4 5 1 10 Combat Bots Only 16 | . 3 . . 1 7 5 6 16 . . . . . 5 1 . . . 4 4 1 9 3 1 3 4 5 . 10 Max Kills in Single Turn 5 | 1 1 1 . 2 2 2 4 5 1 1 . . . 4 1 1 . . 2 2 1 3 2 1 3 2 3 1 5 Gunslinging . | . . . . . . . . . . . . . . . . . . . . . . . . . . . . . . Exploded 5 | . . . . . 2 2 2 4 . . . . . 3 . . . . 2 2 . 3 2 . 2 2 2 . 5 Melee 1 | . . . . . 1 1 1 1 . . . . . . . . . . . . . . . . . . . . . Uniques/NPCs Destroyed 1 | . . . . 1 . . . . . . . . . . . . . . . . . . . . . . . . . YI-UF0 (-9/Mines) Combat | -11 -10 -10 -10 -9 -8 -7 -6 -6 -6 -6 -6 -5 -5 -5 -5 -5 -5 -4 -4 -4 -4 -4 -3 -3 -3 -2 -2 -1 -1 -------- Run | Yrd Mat Min Exi Min Mat Fac Fac Ext Cet Arc Hub Fac Was Fac Upp Upp Zhi Pro Fac Upp Upp War Pro Res Tes Res Qua Acc Com Hostile Shots Fired 1357 | . 82 3 . . 100 94 130 129 10 . 2 . . 129 16 . . . 169 5 12 1 4 6 28 7 30 22 378 Missed 542 | . 19 . . . 28 43 49 57 3 . 1 . . 52 6 . . . 69 2 9 1 1 6 14 2 15 9 156 Intercepted 16 | . . . . . . . . . . . . . . . . . . . . . . . . . . . . . 16 Damage Taken 18079 | . 627 34 . . 1216 636 1580 922 205 . 105 . . 1574 191 . . . 2500 20 38 . 59 . 313 97 324 196 7442 Core 3234 | . 138 21 . . 333 99 281 139 13 . 30 . . 199 21 . . . 308 6 12 . . . 11 . . . 1623 Absorbed by Shields 706 | . . . . . . . . . 64 . . . . 60 . . . . . 21 17 . 31 . 93 35 170 . 215 Redirected to Shielding 138 | . . . . . 50 . . . . . . . . . . . . . 7 . 14 . 9 . . . . . 58 Regen/Repaired (Parts) 1283 | . . . . . . . . . . . . 83 . 655 . . . . 454 . . 16 . . 75 . . . . Core Remaining (%) 72 | 100 . . . 36 39 85 . . . . 45 . . . . . . 78 . . . . 71 . 99 . 100 . . Volleys Fired 610 | 23 88 8 . 9 65 11 34 26 5 3 7 . . 42 15 4 . . 24 8 11 9 15 21 15 20 18 10 119 Largest 3 | 2 2 2 . 2 2 2 2 2 2 2 1 . . 2 1 1 . . 1 1 1 1 1 1 1 1 1 1 3 Hottest 241 | 70 89 78 . 78 88 88 111 86 96 83 48 . . 117 60 57 . . 98 60 60 60 60 60 60 100 60 120 241 Shots Fired 851 | 46 138 17 . 17 100 19 35 38 11 6 7 . 1 49 15 4 . . 24 8 11 9 15 22 16 20 18 10 195 Gun 142 | 46 63 . . . . . . . 4 3 . . . . . . . . . . . . . . . . . . 26 Cannon 582 | . 74 17 . 17 91 16 21 8 7 3 7 . 1 29 15 4 . . 18 4 11 1 9 22 11 16 12 10 158 Launcher 118 | . 1 . . . 9 3 14 30 . . . . . 20 . . . . 6 4 . . 6 . 5 4 6 . 10 Special 9 | . . . . . . . . . . . . . . . . . . . . . . 8 . . . . . . 1 Kinetic 502 | 23 78 17 . 17 76 16 20 8 11 6 7 . 1 29 15 4 . . 6 4 11 1 9 22 11 16 12 . 82 Thermal 180 | 23 59 . . . . . . . . . . . . . . . . . 12 . . . . . . . . 10 76 Explosive 120 | . 1 . . . 9 3 14 30 . . . . . 20 . . . . 6 4 . 8 . . 5 4 6 . 10 Electromagnetic 22 | . . . . . 15 . 1 . . . . . . . . . . . . . . . 6 . . . . . . Entropic 26 | . . . . . . . . . . . . . . . . . . . . . . . . . . . . . 26 Robot Hit Streak 30 | 6 5 6 . 2 9 7 8 4 3 2 . . . 4 4 . . . 6 . 2 10 2 5 2 11 5 . 30 Robot Miss Streak 13 | 3 5 1 . 2 3 1 4 3 2 1 . . 1 2 2 . . . 2 1 5 . 2 2 2 3 1 4 13 Penetration Max 2 | . . . . . . . . . . 1 . . . . . . . . . . . . . . . . . . 2 Secondary Targets 1 | . 1 . . . . . . . . . . . . . . . . . . . . . . . . . . . . Max Gunslinging Chain 1 | . 1 . . . . . . . . . . . . . . . . . . . . . . . . . . . . Shots Hit Robots 613 | 26 63 12 . 13 67 36 33 25 5 11 1 . . 40 14 1 5 2 32 1 3 8 5 22 12 14 15 4 143 Core Hits 500 | 9 24 4 . 7 53 19 36 84 . 5 . . . 63 2 1 . 1 16 5 2 28 9 8 9 6 7 3 99 Critical Kills 13 | . . . . . . . . . . . . . . 1 . 1 . . 1 . . . . . . 1 . 1 8 Critical Parts Destroyed 50 | . . . . . . . . . 1 1 . . . . 2 . 2 . 6 . . . . 4 2 3 3 . 26 Critical Strikes 127 | 1 6 . . . 2 6 . 2 1 2 . . . 3 3 1 2 . 7 . . 3 1 6 3 9 3 1 65 Burn 4 | 1 3 . . . . . . . . . . . . . . . . . . . . . . . . . . . . Meltdown 1 | . . . . . . . . . . . . . . . . . . . . . . . . . . . . . 1 Destroy 66 | . . . . . . . . . 1 1 . . . . . . . . . . . . . . . 6 . . 58 Blast 16 | . 3 . . . 1 . . . . 1 . . . 2 1 . . . . . . . 1 2 1 1 . . 3 Smash 26 | . . . . . . . . . . . . . . 1 2 1 2 . 7 . . . . 4 2 2 3 1 1 Sever 12 | . . . . . 1 6 . 2 . . . . . . . . . . . . . 3 . . . . . . . Detonate 2 | . . . . . . . . . . . . . . . . . . . . . . . . . . . . . 2 Melee Attacks 637 | . . . . 6 17 63 96 23 . 8 9 1 . 55 9 3 5 5 87 11 6 22 1 35 24 33 30 12 76 Impact 378 | . . . . . . . . . . . . . . 19 9 3 5 5 87 11 6 22 1 35 24 33 30 12 76 Slashing 259 | . . . . 6 17 63 96 23 . 8 9 1 . 36 . . . . . . . . . . . . . . . Piercing . | . . . . . . . . . . . . . . . . . . . . . . . . . . . . . . Sneak Attacks 88 | . . . . 6 2 10 12 3 . 8 . . . 9 3 1 . . 7 1 . . . 8 4 5 5 2 2 Combat Hostiles . | . . . . . . . . . . . . . . . . . . . . . . . . . . . . . . Follow-up Attacks 1 | . . . . . . . . 1 . . . . . . . . . . . . . . . . . . . . . Damage Inflicted 48546 | 277 1120 238 . 542 2464 2299 3935 5946 221 1096 53 . 31 5193 805 103 442 289 2900 536 142 4143 375 1710 1772 1638 1927 295 8054 Guns 1706 | 277 390 . . . . . . . 49 76 . . . . . . . . . . . . . . . . . . 914 Cannons 9520 | . 730 238 . 170 1375 283 62 114 172 55 . . 31 202 306 . . . 155 . 142 . 33 455 158 115 71 . 4653 Explosions 21342 | . . . . . 700 502 1660 4970 . . . . . 3250 . . . . 1058 431 . 3754 342 . 926 730 864 . 2155 Melee 15589 | . . . . 372 389 1514 2213 862 . 965 53 . . 1741 499 103 442 289 1687 105 . . . 1255 688 793 992 295 332 Ramming . | . . . . . . . . . . . . . . . . . . . . . . . . . . . . . . Kinetic 7115 | 113 747 238 . 170 1087 283 62 114 221 131 . . 31 202 306 . . . 88 . 142 . 33 455 158 115 71 . 2348 Thermal 3466 | 164 373 . . . . 237 . . . . . . . 279 . . . . 67 . . . . . . . . . 2346 Explosive 20392 | . . . . . 700 265 1660 4970 . . . . . 2920 . . . . 1058 431 . 3754 . . 926 730 864 . 2114 Electromagnetic 681 | . . . . . 288 . . . . . . . . 51 . . . . . . . . 342 . . . . . . Impact 8386 | . . . . . . . . . . . . . . 906 499 103 442 289 1687 105 . . . 1255 688 793 992 295 332 Slashing 7592 | . . . . 372 389 1514 2213 862 . 965 53 . . 835 . . . . . . . 389 . . . . . . . Piercing . | . . . . . . . . . . . . . . . . . . . . . . . . . . . . . . Entropic 914 | . . . . . . . . . . . . . . . . . . . . . . . . . . . . . 914 Highest Corruption 30 | . . 5 5 5 . 3 7 8 13 13 1 . 5 7 . . . . 6 6 6 . . 5 5 1 1 . 30 Average Corruption 5 | . . 5 5 5 . 1 3 7 11 10 1 . 5 4 . . . . 4 6 4 . . 5 5 1 1 . 12 Corruption Purged 35 | . . . . . . 4 . . . 13 . . . 11 . . . . . . 6 . . . . 1 . . . Corruption Blocked 4 | . . . . . . . . . . . . . . . . . . . . . . . . . . 4 . . . Effects 267 | . . 13 3 19 . 2 25 32 10 10 3 . 3 35 . . . . 30 12 4 . . 10 14 3 2 . 37 Message Errors 68 | . . 5 . 2 . . 6 15 2 2 . . 1 12 . . . . 7 3 . . . 3 3 . . . 7 Matter Fused 67 | . . . 1 5 . 1 9 3 2 5 . . . 11 . . . . 6 5 2 . . 3 5 1 . . 8 Heat Flow Errors 25 | . . 2 . 2 . 1 2 4 . . 2 . 1 2 . . . . 2 2 . . . 1 2 . . . 2 Energy Discharges 21 | . . 1 1 2 . . 3 1 2 . . . . 3 . . . . 2 1 . . . . 2 . 2 . 1 Parts Rejected 3 | . . . . . . . . 1 1 . . . . . . . . . 1 . . . . . . . . . . Parts Fused 8 | . . 1 1 1 . . 1 1 . . . . . 1 . . . . 1 . 1 . . . . . . . . Data Loss (minor) 24 | . . 1 . . . . 2 3 1 2 1 . . 2 . . . . 5 1 1 . . . . 1 . . 4 Data Loss (major) 19 | . . 1 . 2 . . 2 2 1 . . . . 2 . . . . 4 . . . . . 1 1 . . 3 Misfires 13 | . . 1 . 4 . . . 1 1 . . . 1 2 . . . . . . . . . 1 1 . . . 1 Alerts 7 | . . 1 . 1 . . . . . 1 . . . . . . . . 2 . . . . 2 . . . . . Misdirections 4 | . . . . . . . . . . . . . . . . . . . . . . . . . . . . . 4 Weapon Failures 8 | . . . . . . . . 1 . . . . . . . . . . . . . . . . . . . . 7 Overload Shots . | . . . . . . . . . . . . . . . . . . . . . . . . . . . . . . Overflow Damage 7285 | . 37 9 . 79 100 498 568 225 23 321 18 . . 456 401 . 395 141 960 28 16 125 12 730 638 591 802 . 112 Projectiles 293 | . 37 9 . . 28 21 . . 23 . . . . 7 53 . 41 . . . 16 . . 9 27 . 16 . 6 Explosions 841 | . . . . . 28 74 116 102 . . . . . 33 . . . . 39 4 . 125 12 . 125 47 59 . 77 Melee 6151 | . . . . 79 44 403 452 123 . 321 18 . . 416 348 . 354 141 921 24 . . . 721 486 544 727 . 29 Knockbacks 92 | . 11 3 . 2 16 6 . 1 . . . . . 4 4 . 1 . 5 . . . . 8 5 . 5 . 21 Impact 23 | . . . . . . . . . . . . . . 4 3 . 1 . 4 . . . . 4 3 . 3 . 1 Kinetic 65 | . 11 2 . 2 14 5 . 1 . . . . . . 1 . . . 1 . . . . 4 2 . 2 . 20 Secondary 4 | . . 1 . . 2 1 . . . . . . . . . . . . . . . . . . . . . . . Self-Inflicted Damage 1013 | . . . . . 151 . . 44 . . 90 . . 257 . . . . 115 . . . 14 . 85 . 102 . 155 Shots 23 | . . . . . 5 . . 1 . . 1 . . 9 . . . . 3 . . . 1 . 1 . 1 . 1 Rammed . | . . . . . . . . . . . . . . . . . . . . . . . . . . . . . . Targets Rammed . | . . . . . . . . . . . . . . . . . . . . . . . . . . . . . . Kicked . | . . . . . . . . . . . . . . . . . . . . . . . . . . . . . . Crushed . | . . . . . . . . . . . . . . . . . . . . . . . . . . . . . . Highest Temperature 452 | 190 343 281 . 276 381 452 245 253 101 40 166 . 116 403 66 84 3 3 322 220 48 26 144 189 162 160 127 54 432 Average Temperature 68 | 85 87 70 . 73 101 130 88 74 36 20 65 . 46 83 11 7 1 1 109 76 26 8 40 28 38 39 35 22 83 Received Heat Transfer 1963 | . 195 18 . . 483 126 399 151 9 . . . . 9 72 . . . 192 . 12 . . . 9 . . . 288 Effects 19 | . . . . 2 3 . 1 . . . . . . 2 . . . . 4 . . . . . . . . . 7 Shutdowns 4 | . . . . . . . . . . . . . . 1 . . . . . . . . . . . . . . 3 Energy Bleed 1 | . . . . . . . . . . . . . . . . . . . 1 . . . . . . . . . . Interference 11 | . . . . 2 2 . 1 . . . . . . . . . . . 3 . . . . . . . . . 3 Matter Decay 2 | . . . . . 1 . . . . . . . . 1 . . . . . . . . . . . . . . . Damage (minor) 1 | . . . . . . . . . . . . . . . . . . . . . . . . . . . . . 1 Siege Activations . | . . . . . . . . . . . . . . . . . . . . . . . . . . . . . . Robots Corrupted . | . . . . . . . . . . . . . . . . . . . . . . . . . . . . . . Combat Hostiles . | . . . . . . . . . . . . . . . . . . . . . . . . . . . . . . Parts Fried 66 | . . . . . 4 . . . . . . . . 3 3 . 5 . 20 1 . . 3 6 5 4 11 . 1 Impact Corruptions 129 | . . . . . . . . . . . . . . 5 21 . 19 2 32 2 . . . 14 8 10 15 . 1 Robots Melted 1 | . . . . . . . . . . . . . . . . . . . . . . . . . . . . . 1 Combat Hostiles 1 | . . . . . . . . . . . . . . . . . . . . . . . . . . . . . 1 Parts Melted 5 | . 2 . . 1 . 1 . . . . . . . . . . . . . . . . . . . . . . 1 Heat Transferred 3078 | 555 1332 . . . . 200 . . . . . . . 200 . . . . 100 . . . . . . . . . 691 Parts Sabotaged . | . . . . . . . . . . . . . . . . . . . . . . . . . . . . . . Parts Stolen . | . . . . . . . . . . . . . . . . . . . . . . . . . . . . . . Parts Stripped . | . . . . . . . . . . . . . . . . . . . . . . . . . . . . . . Power Chain Reactions 1 | . . . . . . . . . . . . . . 1 . . . . . . . . . . . . . . . Alert | -11 -10 -10 -10 -9 -8 -7 -6 -6 -6 -6 -6 -5 -5 -5 -5 -5 -5 -4 -4 -4 -4 -4 -3 -3 -3 -2 -2 -1 -1 ------- Run | Yrd Mat Min Exi Min Mat Fac Fac Ext Cet Arc Hub Fac Was Fac Upp Upp Zhi Pro Fac Upp Upp War Pro Res Tes Res Qua Acc Com Peak Influence 1458 | 25 240 95 . 122 482 413 547 1458 1028 618 550 325 113 623 . . . . 475 . . . . 211 822 276 338 299 1107 Initial 732 | . 16 19 . . 1 165 157 190 732 411 216 259 113 79 . . . . . . . . . . 90 38 84 104 191 Average 241 | 10 66 20 . 43 170 177 277 825 911 575 384 308 113 203 . . . . 244 . . . . 117 334 115 156 189 780 Maximum Alert Level 4 | . 1 . . . 2 2 2 4 3 2 2 1 . 2 . . . . 2 . . . . 1 3 1 1 1 4 Low Security (%) 59 | 100 96 100 . 100 65 66 27 5 . . . . 100 61 . . . . 48 . . . . 90 26 81 71 64 . Level 1 20 | . 3 . . . 24 32 53 12 . . 49 100 . 18 . . . . 30 . . . . 9 40 18 28 35 7 Level 2 12 | . . . . . 9 . 18 32 . 100 50 . . 20 . . . . 21 . . . . . 29 . . . 21 Level 3 5 | . . . . . . . . 13 100 . . . . . . . . . . . . . . . 2 . . . 69 Level 4 1 | . . . . . . . . 36 . . . . . . . . . . . . . . . . . . . . 1 Level 5 . | . . . . . . . . . . . . . . . . . . . . . . . . . . . . . . High Security . | . . . . . . . . . . . . . . . . . . . . . . . . . . . . . . Max Security . | . . . . . . . . . . . . . . . . . . . . . . . . . . . . . . Squads Dispatched 93 | . 4 1 . . 4 8 14 6 . . 4 . . 9 . . . . 14 . . . . 9 7 2 4 1 6 Investigation 36 | . 3 . . . . 4 4 2 . . 1 . . 5 . . . . 8 . . . . 4 3 1 . . 1 Extermination 12 | . . . . . . 2 3 . . . . . . 1 . . . . 2 . . . . . 1 . 1 . 2 Reinforcement 33 | . 1 . . . 3 2 4 2 . . 2 . . 3 . . . . 2 . . . . 5 2 1 3 1 2 Assault 7 | . . 1 . . . . . 2 . . 1 . . . . . . . 1 . . . . . 1 . . . 1 Garrison 5 | . . . . . 1 . 3 . . . . . . . . . . . 1 . . . . . . . . . . Intercept . | . . . . . . . . . . . . . . . . . . . . . . . . . . . . . . Searches Triggered 2 | . . . . . . . . . . . . . . . . . . . 1 . . . . . 1 . . . . Construction Impeded 5 | . . . . . . 1 1 1 . . . . . 1 . . . . 1 . . . . . . . . . . Haulers Reinforced 6 | . . . . . . 1 2 . . . . . . 1 . . . . . . . . . 1 1 . . . . Active Scanning Responses . | . . . . . . . . . . . . . . . . . . . . . . . . . . . . . . Cargo Convoy Interrupts . | . . . . . . . . . . . . . . . . . . . . . . . . . . . . . . Stealth | -11 -10 -10 -10 -9 -8 -7 -6 -6 -6 -6 -6 -5 -5 -5 -5 -5 -5 -4 -4 -4 -4 -4 -3 -3 -3 -2 -2 -1 -1 --------- Run | Yrd Mat Min Exi Min Mat Fac Fac Ext Cet Arc Hub Fac Was Fac Upp Upp Zhi Pro Fac Upp Upp War Pro Res Tes Res Qua Acc Com Distress Signals 38 | . . . . . 2 . 3 6 2 1 . . . 2 . . . . 2 . . . . 3 1 9 2 1 4 Communications Jammed . | . . . . . . . . . . . . . . . . . . . . . . . . . . . . . . Distress Signals . | . . . . . . . . . . . . . . . . . . . . . . . . . . . . . . Times Spotted 475 | . 27 5 . 1 35 34 64 43 10 7 10 . 6 29 15 . . . 47 2 5 17 2 10 33 12 19 6 36 Peak Tracking Total 12 | . 4 4 . 1 7 6 12 8 5 2 8 1 6 5 5 . . . 11 5 3 7 5 4 11 5 9 4 10 Tactical Retreats 72 | . 2 . . . 2 11 13 2 . . . . . 5 7 . . . 10 1 . 1 1 4 5 3 1 2 2 Traps | -11 -10 -10 -10 -9 -8 -7 -6 -6 -6 -6 -6 -5 -5 -5 -5 -5 -5 -4 -4 -4 -4 -4 -3 -3 -3 -2 -2 -1 -1 ------- Run | Yrd Mat Min Exi Min Mat Fac Fac Ext Cet Arc Hub Fac Was Fac Upp Upp Zhi Pro Fac Upp Upp War Pro Res Tes Res Qua Acc Com Traps Triggered 23 | . 2 . . . . 1 5 1 . . . 1 . 4 . . . . 3 . . . . 1 2 . 1 1 1 Indirectly . | . . . . . . . . . . . . . . . . . . . . . . . . . . . . . . Trap Hack Attempts 39 | . . . . . . . . . . . . . . 39 . . . . . . . . . . . . . . . Triggered . | . . . . . . . . . . . . . . . . . . . . . . . . . . . . . . Disarmed . | . . . . . . . . . . . . . . . . . . . . . . . . . . . . . . Reprogrammed 16 | . . . . . . 4 . . . . 6 . . 5 . . . . . . . . . . . . . . 1 Reused 16 | . . . . . 1 5 . . . . 1 . . . 3 . . . 5 . . . . . . . . . 1 Traps Extracted 10 | . . . . . . 2 . . . . . . . 5 . 2 . . . . . 1 . . . . . . . Installed 19 | . . . . . 1 6 . . . . . . . . 7 . . . 5 . . . . . . . . . . Triggered 29 | . . . . . 1 5 . . . . 1 . . . 3 . . . 5 1 1 11 . . . . . . 1 Most Traps Carried 8 | . . 5 5 5 5 4 . . . . . . . 5 5 8 8 8 8 3 3 4 4 4 4 . . . . Objects Rigged 2 | . . . . . . . 2 . . . . . . . . . . . . . . . . . . . . . . Machines | -11 -10 -10 -10 -9 -8 -7 -6 -6 -6 -6 -6 -5 -5 -5 -5 -5 -5 -4 -4 -4 -4 -4 -3 -3 -3 -2 -2 -1 -1 ---------- Run | Yrd Mat Min Exi Min Mat Fac Fac Ext Cet Arc Hub Fac Was Fac Upp Upp Zhi Pro Fac Upp Upp War Pro Res Tes Res Qua Acc Com Machines Disabled 86 | . 1 . . 2 3 5 8 6 . 3 11 . . 23 . . 1 . 3 1 . . . . 5 4 6 1 3 Max in Single Turn 9 | . 1 . . 1 1 4 4 2 . 1 9 . . 4 . . 1 . 1 1 . . . . 1 1 1 1 1 Garrison Access 15 | . . . . . . 3 1 . . . 1 . . 2 . . . . 2 . . . . 1 1 3 1 . . Phase Generator 1 | . . . . . . . . . . . . . . . . . . . . . . . . . . . . . 1 Network Hub 2 | . . . . . . . . . . . 2 . . . . . . . . . . . . . . . . . . Energy Cycler 1 | . . . . . . . . 1 . . . . . . . . . . . . . . . . . . . . . Machines Repaired . | . . . . . . . . . . . . . . . . . . . . . . . . . . . . . . Machines Dismantled . | . . . . . . . . . . . . . . . . . . . . . . . . . . . . . . Machines Sabotaged 1 | . . . . . . . . . . . 1 . . . . . . . . . . . . . . . . . . Overloaded Fab Kills . | . . . . . . . . . . . . . . . . . . . . . . . . . . . . . . Hacking | -11 -10 -10 -10 -9 -8 -7 -6 -6 -6 -6 -6 -5 -5 -5 -5 -5 -5 -4 -4 -4 -4 -4 -3 -3 -3 -2 -2 -1 -1 --------- Run | Yrd Mat Min Exi Min Mat Fac Fac Ext Cet Arc Hub Fac Was Fac Upp Upp Zhi Pro Fac Upp Upp War Pro Res Tes Res Qua Acc Com Machines Accessed 174 | . 9 2 1 . 3 24 16 9 1 . 3 3 . 23 . . 4 . 20 1 2 7 . 7 11 5 11 5 7 Terminals 96 | . 7 1 . . 3 12 11 9 1 . 3 1 . 9 . . . . 10 . . . . 4 4 2 8 4 7 Fabricators 20 | . . . . . . 5 3 . . . . . . 5 . . . . 5 . . . . . 2 . . . . Repair Stations 10 | . . . . . . . . . . . . 2 . 3 . . . . 2 . . . . 1 2 . . . . Recycling Units 11 | . 2 . . . . 4 1 . . . . . . 2 . . . . 1 . . . . . . . . 1 . Scanalyzers 8 | . . . . . . . . . . . . . . 2 . . . . . . . . . 2 2 . 2 . . Garrison Access 13 | . . . . . . 3 1 . . . . . . 2 . . . . 2 . . . . . 1 3 1 . . Total Hacks 684 | . 17 6 1 . 12 58 66 25 1 . 7 19 . 128 . . 17 . 113 1 6 10 . 25 54 23 49 16 30 Successful 375 | . 6 1 1 . 6 25 40 6 1 . 4 14 . 92 . . 17 . 69 1 6 10 . 9 23 6 23 5 10 Failed 308 | . 11 5 . . 6 33 26 19 . . 3 5 . 35 . . . . 44 . . . . 16 31 17 26 11 20 Catastrophic 53 | . 5 . . . 1 3 2 3 . . 1 1 . 4 . . . . 10 . . . . 4 5 1 4 4 5 Database Lockouts 1 | . . . . . . . . . . . . . . 1 . . . . . . . . . . . . . . . Manual 257 | . 5 5 . . 3 14 37 8 1 . 3 11 . 60 . . . . 54 . . . . 8 21 3 15 6 3 Terminals 446 | . 14 5 . . 12 32 49 25 1 . 7 14 . 74 . . . . 69 . . . . 15 33 12 43 11 30 Fabricators 85 | . . . . . . 12 13 . . . . . . 27 . . . . 27 . . . . . 6 . . . . Repair Stations 43 | . . . . . . . . . . . . 5 . 13 . . . . 12 . . . . 3 10 . . . . Recycling Units 22 | . 3 . . . . 7 3 . . . . . . 2 . . . . 2 . . . . . . . . 5 . Scanalyzers 25 | . . . . . . . . . . . . . . 10 . . . . . . . . . 7 4 . 4 . . Garrison Access 27 | . . . . . . 7 1 . . . . . . 2 . . . . 3 . . . . . 1 11 2 . . Terminal Hacks 190 | . 6 1 1 . 5 11 18 5 1 . 3 7 . 32 . . 17 . 22 1 6 10 . 2 10 3 16 3 10 Record 21 | . . . 1 . . . . 1 . . . . . . . . 5 . . . 5 9 . . . . . . . Part Schematic 16 | . 1 . . . . 1 2 . . . 1 . . 3 . . 4 . 2 . . . . . 2 . . . . Robot Analysis 8 | . . . . . . . . . . . . . . . . . 4 . . . . . . . 1 . 2 . 1 Prototype ID Bank 16 | . 2 . . . 1 . 2 . . . . 1 . 2 . . 4 . . . . . . . . . 2 . 2 Open Door 13 | . . 1 . . . . . 4 1 . . . . . . . . . . 1 1 1 . . . . . 3 1 Level Access Points 1 | . . . . . . . . . . . 1 . . . . . . . . . . . . . . . . . . Branch Access Points 4 | . . . . . . . 1 . . . . . . 1 . . . . 1 . . . . 1 . . . . . Emergency Access Points 5 | . . . . . 1 . 1 . . . . . . 2 . . . . 1 . . . . . . . . . . Machine Index 4 | . . . . . . . 1 . . . . . . 1 . . . . . . . . . 1 . . 1 . . Terminal Index 4 | . . . . . . 1 . . . . . 1 . 1 . . . . . . . . . . . . . . 1 Fabricator Index 2 | . . . . . . . . . . . . 1 . 1 . . . . . . . . . . . . . . . Repair Station Index 1 | . . . . . . . . . . . . 1 . . . . . . . . . . . . . . . . . Scanalyzer Index 1 | . . . . . . . . . . . . 1 . . . . . . . . . . . . . . . . . Garrison Index 1 | . . . . . . . . . . . . 1 . . . . . . . . . . . . . . . . . Alert Level 5 | . . . . . . . 1 . . . . . . 2 . . . . . . . . . . . . 1 . 1 Unreport Threat 22 | . . . . . 1 2 4 . . . . . . 6 . . . . 2 . . . . . 4 . 3 . . Locate Traps 8 | . . . . . 1 3 . . . . . . . 2 . . . . 2 . . . . . . . . . . Reprogram Traps 4 | . . . . . . 1 . . . . 1 . . 1 . . . . . . . . . . . . . . 1 Dispatch Records 2 | . . . . . . . . . . . . . . 1 . . . . 1 . . . . . . . . . . Security Status 1 | . . . . . . . 1 . . . . . . . . . . . . . . . . . . . . . . Surveillance Status 1 | . . . . . . 1 . . . . . . . . . . . . . . . . . . . . . . . Patrol Status 1 | . . . . . . . . . . . . . . . . . . . . . . . . . . . . . 1 Transport Status 2 | . . . . . . . 1 . . . . . . 1 . . . . . . . . . . . . . . . Investigation Status 1 | . . . . . . . . . . . . . . . . . . . 1 . . . . . . . . . . Recall Investigation 5 | . . . . . . . 1 . . . . . . 2 . . . . 2 . . . . . . . . . . Recall Extermination 2 | . . . . . . . 1 . . . . . . . . . . . 1 . . . . . . . . . . Recall Reinforcements 2 | . . . . . . . . . . . . . . . . . . . 1 . . . . . . . 1 . . Recall Assault 1 | . . . . . . . . . . . . . . . . . . . 1 . . . . . . . . . . Hauler Manifests 8 | . 1 . . . 1 . . . . . . 1 . 1 . . . . 1 . . . . . 1 1 1 . . Registered Components 2 | . . . . . . . . . . . . . . . . . . . 1 . . . . . . 1 . . . Registered Prototypes 3 | . . . . . . . . . . . . . . 1 . . . . 1 . . . . . . . 1 . . Zone Layout 20 | . 2 . . . . 2 2 . . . . . . 4 . . . . 4 . . . . . 1 1 4 . . Protovariant Controls 1 | . . . . . . . . . . . . . . . . . . . . . . . . . 1 . . . . Disengage Seal 2 | . . . . . . . . . . . . . . . . . . . . . . . . . . . . . 2 Fabricator Hacks 47 | . . . . . . 5 7 . . . . . . 16 . . . . 16 . . . . . 3 . . . . Network Status 2 | . . . . . . 1 . . . . . . . 1 . . . . . . . . . . . . . . . Load Schematic 29 | . . . . . . 2 5 . . . . . . 10 . . . . 10 . . . . . 2 . . . . Build 16 | . . . . . . 2 2 . . . . . . 5 . . . . 6 . . . . . 1 . . . . Repair Station Hacks 29 | . . . . . . . . . . . . 4 . 12 . . . . 7 . . . . 2 4 . . . . Scan Component 16 | . . . . . . . . . . . . 2 . 6 . . . . 4 . . . . 1 3 . . . . Repair 13 | . . . . . . . . . . . . 2 . 6 . . . . 3 . . . . 1 1 . . . . Recycling Unit Hacks 9 | . . . . . . 4 1 . . . . . . 2 . . . . 1 . . . . . . . . 1 . Retrieve Components 9 | . . . . . . 4 1 . . . . . . 2 . . . . 1 . . . . . . . . 1 . Scanalyzer 19 | . . . . . . . . . . . . . . 10 . . . . . . . . . 4 2 . 3 . . Insert Component 12 | . . . . . . . . . . . . . . 5 . . . . . . . . . 2 2 . 3 . . Analyze 7 | . . . . . . . . . . . . . . 5 . . . . . . . . . 2 . . . . . Garrison Access Hacks 13 | . . . . . . 3 1 . . . . . . 2 . . . . 2 . . . . . 1 3 1 . . Seal Access 13 | . . . . . . 3 1 . . . . . . 2 . . . . 2 . . . . . 1 3 1 . . Unauthorized Hacks 68 | . . . . . 1 2 13 1 . . 1 3 . 18 . . . . 21 . . . . 1 3 . 3 1 . Terminals 46 | . . . . . 1 1 8 1 . . 1 3 . 10 . . . . 15 . . . . 1 2 . 3 . . Track 9 | . . . . . . . 1 . . . . 1 . 2 . . . . 4 . . . . . 1 . . . . Assimilate 12 | . . . . . . . 3 1 . . . . . 4 . . . . 1 . . . . . 1 . 2 . . Botnet 18 | . . . . . . 1 2 . . . . 1 . 4 . . . . 8 . . . . 1 . . 1 . . Detonate 1 | . . . . . . . 1 . . . . . . . . . . . . . . . . . . . . . . Disrupt 1 | . . . . . . . 1 . . . . . . . . . . . . . . . . . . . . . . Operators 4 | . . . . . 1 . . . . . . 1 . . . . . . 2 . . . . . . . . . . Sabotage 1 | . . . . . . . . . . . 1 . . . . . . . . . . . . . . . . . . Fabricators 21 | . . . . . . 1 5 . . . . . . 8 . . . . 6 . . . . . 1 . . . . Prioritize 7 | . . . . . . 1 2 . . . . . . 2 . . . . 2 . . . . . . . . . . Liberate 1 | . . . . . . . 1 . . . . . . . . . . . . . . . . . . . . . . Haulers 1 | . . . . . . . . . . . . . . 1 . . . . . . . . . . . . . . . Recompile 12 | . . . . . . . 2 . . . . . . 5 . . . . 4 . . . . . 1 . . . . Repair Stations . | . . . . . . . . . . . . . . . . . . . . . . . . . . . . . . Recycling Units 1 | . . . . . . . . . . . . . . . . . . . . . . . . . . . . 1 . Recyclers 1 | . . . . . . . . . . . . . . . . . . . . . . . . . . . . 1 . Scanalyzers . | . . . . . . . . . . . . . . . . . . . . . . . . . . . . . . Garrison Access . | . . . . . . . . . . . . . . . . . . . . . . . . . . . . . . Data Cores Recovered 2 | . . . . . . . . . . . . . . 1 . . . . 1 . . . . . . . . . . Used . | . . . . . . . . . . . . . . . . . . . . . . . . . . . . . . Hacking Detections 110 | . 8 1 . . 2 19 13 7 . . 3 2 . 13 . . . . 12 . . . . 5 8 2 9 2 4 Full Trace Events 15 | . 1 . . . . 4 2 2 . . . . . . . . . . 3 . . . . . 2 1 . . . Feedback Events 3 | . . . . . . . 1 1 . . . . . . . . . . . . . . . . . 1 . . . Corruption 3 | . . . . . . . 1 1 . . . . . . . . . . . . . . . . . 1 . . . Feedback Blocked . | . . . . . . . . . . . . . . . . . . . . . . . . . . . . . . Robot Schematics Acquired 1 | . . . . . . . . . . . . . . . . . . . . . . . . . 1 . . . . Robots Built . | . . . . . . . . . . . . . . . . . . . . . . . . . . . . . . Authchips . | . . . . . . . . . . . . . . . . . . . . . . . . . . . . . . Time . | . . . . . . . . . . . . . . . . . . . . . . . . . . . . . . Total Robot Build Rating . | . . . . . . . . . . . . . . . . . . . . . . . . . . . . . . Part Schematics Acquired 22 | . 1 . . . . 1 2 . . . 1 . . 7 . . 4 . 2 . . . . 1 3 . . . . Parts Built 21 | . . . . . . 4 2 . . . . . . 8 . . . . 6 . . . . . 1 . . . . Authchips 12 | . . . . . . . 2 . . . . . . 5 . . . . 5 . . . . . . . . . . Time 789 | . . . . . . 70 89 . . . . . . 254 . . . . 302 . . . . . 74 . . . . Total Part Build Rating 126 | . . . . . . 20 8 . . . . . . 51 . . . . 38 . . . . . 9 . . . . Parts Repaired 12 | . . . . . . . . . . . . 1 . 6 . . . . 3 . . . . 1 1 . . . . Time 734 | . . . . . . . . . . . . 73 . 383 . . . . 207 . . . . 45 26 . . . . Parts Recycled . | . . . . . . . . . . . . . . . . . . . . . . . . . . . . . . Recycled Matter . | . . . . . . . . . . . . . . . . . . . . . . . . . . . . . . Retrieved Matter . | . . . . . . . . . . . . . . . . . . . . . . . . . . . . . . Retrieved Components 17 | . . . . . . 1 . . . . . . . 13 . . . . 3 . . . . . . . . . . Parts Scanalyzed 5 | . . . . . . . . . . . . . . 4 . . . . . . . . . 1 . . . . . Part Schematics Acquired 5 | . . . . . . . . . . . . . . 4 . . . . . . . . . 1 . . . . . Parts Damaged 1 | . . . . . . . . . . . . . . . . . . . . . . . . 1 . . . . . Bothacking | -11 -10 -10 -10 -9 -8 -7 -6 -6 -6 -6 -6 -5 -5 -5 -5 -5 -5 -4 -4 -4 -4 -4 -3 -3 -3 -2 -2 -1 -1 ------------ Run | Yrd Mat Min Exi Min Mat Fac Fac Ext Cet Arc Hub Fac Was Fac Upp Upp Zhi Pro Fac Upp Upp War Pro Res Tes Res Qua Acc Com Used RIF Installer . | . . . . . . . . . . . . . . . . . . . . . . . . . . . . . . Robots Hacked 1 | . . . . . . . . . . . . . . . . . . . . . . . . . . . . . 1 Non-combat . | . . . . . . . . . . . . . . . . . . . . . . . . . . . . . . Combat . | . . . . . . . . . . . . . . . . . . . . . . . . . . . . . . Robot Hacks Applied . | . . . . . . . . . . . . . . . . . . . . . . . . . . . . . . Manual 1 | . . . . . . . . . . . . . . . . . . . . . . . . . . . . . 1 Relay Couplers Released 2 | . . . . . . . . . . . 1 . . . . . . . . . . . . 1 . . . . . Machine Destruction 2 | . . . . . . . . . . . 1 . . . . . . . . . . . . 1 . . . . . Fabnet Peak Effective % . | . . . . . . . . . . . . . . . . . . . . . . . . . . . . . . Robots Rewired 19 | . . . . . . . . 14 . . . . . . . . . . . . . 5 . . . . . . . Allies Hacked . | . . . . . . . . . . . . . . . . . . . . . . . . . . . . . . Hacks Repelled . | . . . . . . . . . . . . . . . . . . . . . . . . . . . . . . Allies | -11 -10 -10 -10 -9 -8 -7 -6 -6 -6 -6 -6 -5 -5 -5 -5 -5 -5 -4 -4 -4 -4 -4 -3 -3 -3 -2 -2 -1 -1 -------- Run | Yrd Mat Min Exi Min Mat Fac Fac Ext Cet Arc Hub Fac Was Fac Upp Upp Zhi Pro Fac Upp Upp War Pro Res Tes Res Qua Acc Com Total Allies 42 | . . 1 . 3 . . 4 19 5 . . . . 1 . . . . 3 . . 5 . . 1 . . . . Largest Group 11 | . . 1 1 4 3 . 2 8 11 11 7 . . 1 . . . . 3 . . 5 2 . 1 . . . . Highest-Rated Group 763 | . . 31 31 71 55 . 64 374 763 763 543 . . 26 . . . . 138 . . 287 103 . 45 . . . . Highest-Rated Ally 159 | . . 31 31 31 31 . 32 159 152 146 96 . . 26 . . . . 46 . . 68 57 . 45 . . . . Total Orders 23 | . . . . . . . . . . 2 . . . . . . . . . . 3 . . . 1 10 . . 7 STAY 4 | . . . . . . . . . . 1 . . . . . . . . . . 1 . . . . 2 . . . FOLLOW 1 | . . . . . . . . . . 1 . . . . . . . . . . . . . . . . . . . EXPLORE 11 | . . . . . . . . . . . . . . . . . . . . . . . . . . 6 . . 5 RETURN 7 | . . . . . . . . . . . . . . . . . . . . . 2 . . . 1 2 . . 2 Ally Attacks 426 | . . 6 . 9 16 . 8 107 94 43 18 . . . . . . . 43 . 31 26 12 . 13 . . . . Total Damage 9899 | . . 127 . 144 225 . 170 2338 2071 1262 793 . . . . . . . 499 . 593 1309 188 . 180 . . . . Kills 63 | . . 4 . 4 1 . 1 22 9 4 1 . . . . . . . 3 . 2 8 4 . . . . . . Allies Corrupted 10 | . . . . . . . . 2 . . 7 . . . . . . . . . . . . . 1 . . . . Allies Melted 2 | . . . . . . . . . . . . . . . . . . . . . . 1 . . . 1 . . . Intel | -11 -10 -10 -10 -9 -8 -7 -6 -6 -6 -6 -6 -5 -5 -5 -5 -5 -5 -4 -4 -4 -4 -4 -3 -3 -3 -2 -2 -1 -1 ------- Run | Yrd Mat Min Exi Min Mat Fac Fac Ext Cet Arc Hub Fac Was Fac Upp Upp Zhi Pro Fac Upp Upp War Pro Res Tes Res Qua Acc Com Robot Analysis Total 8 | . . . . . . . . . . . . . . . . . 4 . . . . . . . 1 . 2 . 1 Derelict Logs Recovered 10 | . . 2 . 2 . . . . . . . . . . 2 3 . 1 . . . . . . . . . . . Drone Launches 20 | . . . . . . . . . . . . . . . . . . . . . 2 . . . 2 8 . . 8 Drone Recoveries 10 | . . . . . . . . . . . . . . . . . . . . . 2 . . . 1 2 . . 5 Exploration | -11 -10 -10 -10 -9 -8 -7 -6 -6 -6 -6 -6 -5 -5 -5 -5 -5 -5 -4 -4 -4 -4 -4 -3 -3 -3 -2 -2 -1 -1 ------------- Run | Yrd Mat Min Exi Min Mat Fac Fac Ext Cet Arc Hub Fac Was Fac Upp Upp Zhi Pro Fac Upp Upp War Pro Res Tes Res Qua Acc Com Turns Passed 23292 | 172 1998 1541 196 938 981 1679 1739 896 243 363 201 67 71 1814 906 439 173 487 1920 439 449 788 704 796 691 894 503 220 984 Spaces Moved 24487 | 66 579 713 157 607 396 1744 2098 855 151 193 314 148 164 2567 1189 598 242 528 2342 438 670 899 756 1133 1120 1282 944 609 985 Core 253 | 66 185 . . . 2 . . . . . . . . . . . . . . . . . . . . . . . . Treads . | . . . . . . . . . . . . . . . . . . . . . . . . . . . . . . Legs . | . . . . . . . . . . . . . . . . . . . . . . . . . . . . . . Wheels . | . . . . . . . . . . . . . . . . . . . . . . . . . . . . . . Hover 24234 | . 394 713 157 607 394 1744 2098 855 151 193 314 148 164 2567 1189 598 242 528 2342 438 670 899 756 1133 1120 1282 944 609 985 Flight . | . . . . . . . . . . . . . . . . . . . . . . . . . . . . . . Fastest Speed 23 | 50 116 116 116 116 48 52 50 46 108 46 36 41 41 41 59 59 59 59 38 40 40 35 46 40 35 27 27 23 25 Average Speed 63 | 133 200 210 124 142 144 70 54 48 108 77 45 41 41 46 60 59 59 59 55 42 40 52 83 40 35 40 31 23 32 Slowest Speed 550 | 150 400 300 176 176 550 180 71 109 109 115 46 41 41 124 125 59 59 59 65 47 40 107 107 40 40 95 95 103 112 Overloaded Moves 38 | . . . . . . . . . . . 8 . . . . . . . 30 . . . . . . . . . . Propulsion Burnouts . | . . . . . . . . . . . . . . . . . . . . . . . . . . . . . . Robots Hopped . | . . . . . . . . . . . . . . . . . . . . . . . . . . . . . . Cave-ins Triggered 1 | . . . . . . . . . . . . . . . . . . . . . . . . . . . . . 1 Exploration Rate (%) 62 | 5 84 99 55 99 40 53 57 86 75 81 29 8 99 42 86 75 60 72 53 52 75 92 82 30 86 60 82 19 41 Regions Visited 29 Branch Regions 18 Pre-discovered Areas 8 | . . . 1 2 . . . . . . . . . . 1 . 3 1 . . . . . . . . . . . Known Exits Taken 21 | . . . . . 1 . 1 1 1 1 1 . . 1 1 1 1 1 1 1 1 1 1 1 1 1 1 1 . Unknown Exits Taken 6 | 1 1 1 1 1 . 1 . . . . . . . . . . . . . . . . . . . . . . . Scrap Searched 17 | . . 3 . 1 . . . . . . . . . . 3 3 . 3 . 2 2 . . . . . . . . Spaces Dug 525 | . 11 . . . 18 30 118 2 . . 9 1 . 28 5 7 . 3 80 34 6 16 1 22 11 17 14 10 82 Terrain Destroyed 1722 | . 15 . . 1 61 56 219 157 . 1 169 1 . 296 11 7 . 3 130 72 13 59 9 31 71 51 68 15 206 Melee 355 | . . . . . 5 30 58 2 . . 6 1 . 27 5 2 . 3 49 8 6 16 1 22 11 17 13 7 66 Projectile 154 | . 5 . . 1 12 . 9 3 . 1 4 . . 21 6 5 . . 12 4 7 1 8 9 4 10 6 8 18 AOE 1199 | . 10 . . . 44 26 152 152 . . 159 . . 248 . . . . 69 60 . 42 . . 56 22 49 . 110 Terrain Rammed . | . . . . . . . . . . . . . . . . . . . . . . . . . . . . . . Walls Destroyed . | . . . . . . . . . . . . . . . . . . . . . . . . . . . . . . Machines Disabled . | . . . . . . . . . . . . . . . . . . . . . . . . . . . . . . Actions | -11 -10 -10 -10 -9 -8 -7 -6 -6 -6 -6 -6 -5 -5 -5 -5 -5 -5 -4 -4 -4 -4 -4 -3 -3 -3 -2 -2 -1 -1 --------- Run | Yrd Mat Min Exi Min Mat Fac Fac Ext Cet Arc Hub Fac Was Fac Upp Upp Zhi Pro Fac Upp Upp War Pro Res Tes Res Qua Acc Com Total 30360 | 107 1280 737 158 656 674 2066 2467 1256 219 390 348 152 167 3041 1344 670 263 693 2788 662 830 1164 810 1395 1365 1581 1082 654 1341 Wait 3288 | 11 572 . . 29 153 153 119 127 54 153 12 . . 198 119 57 . 160 227 199 132 145 34 166 154 181 60 13 60 Move 24459 | 65 578 712 156 606 395 1743 2097 854 150 192 313 148 163 2566 1188 597 241 527 2341 437 669 898 755 1132 1119 1281 943 608 985 Hop . | . . . . . . . . . . . . . . . . . . . . . . . . . . . . . . Pick Up 184 | 4 10 3 1 1 6 13 28 6 1 6 . . 4 29 . . 2 . 22 1 2 4 . 4 8 7 6 2 14 Fast Attach 200 | 4 5 2 . 1 10 14 13 9 4 8 . . . 15 . . 5 . 20 1 2 15 . 15 11 15 6 5 20 Attach 120 | . 3 1 . 1 4 6 21 8 . 3 1 2 . 12 . . 2 . 15 1 1 3 . 4 4 6 . 2 20 Detach 45 | . 3 . 1 . 1 6 10 5 . . . . . . . . 1 . 1 . 2 1 . 2 4 3 . . 5 Swap 247 | . 10 5 . 2 16 27 18 14 1 3 5 1 . 41 6 9 1 1 22 2 1 7 5 3 6 13 6 1 21 Drop 278 | . 11 6 . 1 6 24 30 12 4 14 1 . . 27 . . 6 . 24 2 4 20 . 13 18 21 13 1 20 Fire 610 | 23 88 8 . 9 65 11 34 26 5 3 7 . . 42 15 4 . . 24 8 11 9 15 21 15 20 18 10 119 Melee 636 | . . . . 6 17 63 96 22 . 8 9 1 . 55 9 3 5 5 87 11 6 22 1 35 24 33 30 12 76 Ram . | . . . . . . . . . . . . . . . . . . . . . . . . . . . . . . Kick . | . . . . . . . . . . . . . . . . . . . . . . . . . . . . . . Crush . | . . . . . . . . . . . . . . . . . . . . . . . . . . . . . . Escape Stasis 33 | . . . . . . . 1 13 . . . . . 17 . . . . . . . . . . 2 . . . . Rewire 201 | . . . . . . . . 160 . . . . . . . . . . . . . 40 . . . . . . 1 Trap 58 | . . . . . 1 6 . . . . . . . 39 7 . . . 5 . . . . . . . . . . Miscellaneous 1 | . . . . . . . . . . . . . . . . . . . . . . . . . . 1 . . . Route ------- -11/Scrapyard -10/Materials (discovered 5 exits: [*Mat x3] / *Min x2) -10/Mines (discovered 4 exits: [*Mat x2] / *Exi / [*Sub]) -10/Exiles (discovered 2 exits: [*Min x2]) -9/Mines (discovered 2 exits: *Mat x2) -8/Materials (discovered 2 exits: *Fac x2) -7/Factory (discovered 4 exits: *Fac / [*Sto x2] / [*Low]) -6/Factory (discovered 6 exits: *Fac x2 / *Low x2 / *Ext x2) -6/Extension (discovered 2 exits: *Fac / *Cet) -6/Cetus (discovered 2 exits: *Fac / *Arc) -6/Archives (discovered 2 exits: *Fac / *Hub) -6/Hub_04(d) (discovered 4 exits: *Fac x4) -5/Factory -5/Waste -5/Factory (discovered 2 exits: *Upp x2) -5/Upper Caves -5/Upper Caves -5/Zhirov -4/Proximity Caves -4/Factory (discovered 6 exits: *Res x4 / *Upp x2) -4/Upper Caves -4/Upper Caves (discovered 2 exits: *Res / *War) -4/Warlord -3/Proximity Caves -3/Research (discovered 3 exits: Arm / *Tes x2) -3/Testing -2/Research (discovered 4 exits: *Acc x3 / *Qua) -2/Quarantine -1/Access -1/Command History --------- Turn | Location | Event 11 | -11/Scrapyard | Discovered new exit (range 16) 173 | -11/Scrapyard | Entered Materials 305 | -10/Materials | Build established: Mutant 1181 | -10/Materials | Discovered new exit (range 5) 1367 | -10/Materials | Discovered new exit (range 16) 1461 | -10/Materials | Discovered new exit (range 12) 1505 | -10/Materials | Discovered new exit (range 15) 1815 | -10/Materials | Core integrity fell below 50% 2098 | -10/Materials | Discovered new exit (range 10) 2171 | -10/Materials | Entered Mines 2195 | -10/Mines | Learned 2 Materials zone layouts 2667 | -10/Mines | Deemed a non-threat by the Exiles lab entrance 2737 | -10/Mines | Found a hidden stash of uninstalled traps 2813 | -10/Mines | Met a Derelict who couldn't figure out how to use a Trap Extractor 3053 | -10/Mines | Discovered new exit (range 9) 3118 | -10/Mines | Met a Derelict testing a Signal Generator 3323 | -10/Mines | Discovered new exit (range 11) 3434 | -10/Mines | Learned Materials stockpile data 3605 | -10/Mines | Discovered new exit (range 6) 3705 | -10/Mines | Discovered new exit (range 5) 3712 | -10/Mines | Entered Exiles 3712 | -10/Exiles | Accompanied by 1 ally 3735 | -10/Exiles | Discovered new exit (range 15) 3753 | -10/Exiles | Met 8R-AWN 3774 | -10/Exiles | Met EX-HEX 3819 | -10/Exiles | Met EX-DEC 3840 | -10/Exiles | Learned location of Zion (-7) 3898 | -10/Exiles | Discovered new exit (range 10) 3908 | -10/Exiles | Entered Mines 3908 | -9/Mines | Accompanied by 1 ally 3994 | -9/Mines | Assisted by bots powering up and referring to "LRC-V3" 4019 | -9/Mines | Learned location of Storage (-7) 4030 | -9/Mines | Discovered new exit (range 5) 4276 | -9/Mines | Discovered new exit (range 7) 4353 | -9/Mines | Learned 8 Materials zone layouts 4518 | -9/Mines | YI-UF0 nonchalantly dropped a Grenade Launcher on the ground 4536 | -9/Mines | Murdered YI-UF0 4536 | -9/Mines | Destroyed YI-UF0 4846 | -9/Mines | Entered Materials 4846 | -8/Materials | Accompanied by 3 allies 4846 | -8/Materials | Evolved 4 slots: Propulsion x2, Utility x2 4847 | -8/Materials | Identified exit to Factory 5509 | -8/Materials | Core integrity fell below 50% 5528 | -8/Materials | Lost 4 parts (2n2u) 5533 | -8/Materials | Destroyed 7 combat bots 5630 | -8/Materials | Lost 3 parts (2n1u) 5695 | -8/Materials | Discovered exit to Factory (range 9) 5699 | -8/Materials | Garrison activated, responded to threat 5827 | -8/Materials | Entered Factory 5827 | -7/Factory | Evolved 2 slots: Propulsion x1, Utility x1 6308 | -7/Factory | Build established: Scavenger-Mutant 6537 | -7/Factory | Discovered new exit (range 6) 6568 | -7/Factory | Discovered new exit (range 17) 6845 | -7/Factory | Found Prototype Launcher 6845 | -7/Factory | Identified Rocket Array 6994 | -7/Factory | Fabricated Cmb. Airjet? 7006 | -7/Factory | Discovered new exit (range 5) 7230 | -7/Factory | Build established: Hacker-Mutant 7299 | -7/Factory | Fabricated Cmb. Airjet? 7501 | -7/Factory | Discovered new exit (range 8) 7506 | -7/Factory | Entered another Factory area 7506 | -6/Factory | Evolved 2 slots: Propulsion x1, Utility x1 7707 | -6/Factory | Discovered new exit (range 14) 7989 | -6/Factory | Lost 4 parts (1p2n1w) 8068 | -6/Factory | Discovered new exit (range 16) 8085 | -6/Factory | Identified exit to Lower Caves 8085 | -6/Factory | Identified exit to Extension 8127 | -6/Factory | Spotted B-75 Beast 8295 | -6/Factory | Discovered new exit (range 10) 8536 | -6/Factory | Fabricated Cld. Airjet? 8786 | -6/Factory | Garrison activated, responded to threat 9036 | -6/Factory | Fabricated Cld. Airjet? 9245 | -6/Factory | Entered Extension 9389 | -6/Extension | Rescued a captive Derelict 9416 | -6/Extension | Rescued a captive Derelict 9420 | -6/Extension | Rescued a captive Derelict 9570 | -6/Extension | Disrupted transfer network 9595 | -6/Extension | First assault squad dispatched 9656 | -6/Extension | Spotted B-75 Beast 9676 | -6/Extension | Allies destroyed B-75 Beast 9680 | -6/Extension | Spotted B-75 Beast 9693 | -6/Extension | Allies destroyed B-75 Beast 9714 | -6/Extension | Lost 4 allies 9752 | -6/Extension | Destroyed 16 combat bots 9834 | -6/Extension | Rescued A7 9872 | -6/Extension | Rescued a captive Derelict 9876 | -6/Extension | Rescued a captive Derelict 9998 | -6/Extension | Energy Cycler disabled 9998 | -6/Extension | Rescued a captive Derelict 10000 | -6/Extension | Rescued a captive Derelict 10025 | -6/Extension | Lost 5 allies 10085 | -6/Extension | Discovered new exit (range 10) 10086 | -6/Extension | Discovered new exit (range 6) 10095 | -6/Extension | Identified exit to Factory 10102 | -6/Extension | Identified exit to Cetus 10141 | -6/Extension | Entered Cetus 10141 | -6/Cetus | Accompanied by 8 allies (A7) 10146 | -6/Cetus | Acquired a Cetus Manufacturing Module code from A7 10158 | -6/Cetus | Spotted Cetus Guard 10158 | -6/Cetus | Spotted Cetus Guard 10162 | -6/Cetus | Spotted Cetus Guard 10166 | -6/Cetus | Core integrity fell below 50% 10167 | -6/Cetus | Allies destroyed Cetus Guard 10167 | -6/Cetus | Spotted Cetus Guard 10174 | -6/Cetus | Allies destroyed Cetus Guard 10182 | -6/Cetus | Allies destroyed Cetus Guard 10183 | -6/Cetus | Allies destroyed Cetus Guard 10191 | -6/Cetus | System corruption reached 10% 10219 | -6/Cetus | Started Cetus Manufacturing Module 10242 | -6/Cetus | Escorted A7 to Cetus Mainframe 10244 | -6/Cetus | Manufactured an Enhanced Grunt 10258 | -6/Cetus | Discovered new exit (range 16) 10269 | -6/Cetus | Manufactured an Enhanced Grunt 10284 | -6/Cetus | Spotted Cetus Guard 10284 | -6/Cetus | Spotted Cetus Guard 10287 | -6/Cetus | Spotted Cetus Guard 10289 | -6/Cetus | Spotted Cetus Guard 10294 | -6/Cetus | Manufactured an Enhanced Grunt 10296 | -6/Cetus | Allies destroyed Cetus Guard 10301 | -6/Cetus | Allies destroyed Cetus Guard 10305 | -6/Cetus | Allies destroyed Cetus Guard 10309 | -6/Cetus | Discovered exit to Factory (range 16) 10313 | -6/Cetus | Allies destroyed Cetus Guard 10319 | -6/Cetus | Manufactured an Enhanced Grunt 10321 | -6/Cetus | Met Revision 17 10344 | -6/Cetus | Manufactured an Enhanced Grunt 10345 | -6/Cetus | Build established: Commander-Mutant 10361 | -6/Cetus | Identified exit to Archives 10384 | -6/Cetus | Entered Archives 10384 | -6/Archives | Accompanied by 11 allies (A7) 10389 | -6/Archives | Received a hacking code to weaken MAIN.C 10429 | -6/Archives | Discovered new exit (range 14) 10442 | -6/Archives | Identified exit to Hub_04(d) 10444 | -6/Archives | Lost 3 allies 10591 | -6/Archives | Discovered exit to Factory (range 15) 10747 | -6/Archives | Entered Hub_04(d) 10747 | -6/Hub_04(d) | Accompanied by 7 allies 10801 | -6/Hub_04(d) | Spotted B-75 Beast 10826 | -6/Hub_04(d) | Network Hub disabled 10847 | -6/Hub_04(d) | Network Hub disabled 10907 | -6/Hub_04(d) | Lost 5 allies 10907 | -6/Hub_04(d) | Spotted Lightning 10934 | -6/Hub_04(d) | Spotted Lightning 10948 | -6/Hub_04(d) | Entered Factory 10948 | -5/Factory | Evolved 2 slots: Utility x2 10999 | -5/Factory | Repaired Cld. Airjet? 11015 | -5/Factory | Sucked down chute 11015 | -5/Factory | Entered Waste 11017 | -5/Waste | Found Broken Adv. Powered Armor 11025 | -5/Waste | Spotted C-40 Crusher 11027 | -5/Waste | Spotted C-40 Crusher 11030 | -5/Waste | EMP discharged 11039 | -5/Waste | Spotted C-40 Crusher 11048 | -5/Waste | Found Prototype Device 11057 | -5/Waste | Spotted C-40 Crusher 11058 | -5/Waste | Spotted C-40 Crusher 11076 | -5/Waste | Discovered new exit (range 11) 11076 | -5/Waste | Spotted C-40 Crusher 11086 | -5/Waste | Identified exit to Factory 11086 | -5/Waste | Entered Factory 11112 | -5/Factory | Discovered new exit (range 15) 11118 | -5/Factory | Identified exit to Upper Caves 11287 | -5/Factory | Build established: Scavenger-Scout 11299 | -5/Factory | Repaired Broken Adv. Powered Armor? 11339 | -5/Factory | Central database locked down 11397 | -5/Factory | Repaired Cmb. Airjet? 11415 | -5/Factory | Spotted B-75 Beast 11466 | -5/Factory | Identified Exp. Sensor Array 11471 | -5/Factory | Repaired Cld. Airjet? 11582 | -5/Factory | Repaired Centrium Medium Armor Plating? 11586 | -5/Factory | Fabricated Adv. Powered Armor? 11647 | -5/Factory | Repaired Broken Exp. Sensor Array? 11647 | -5/Factory | Build established: Hacker-Scout 12048 | -5/Factory | Fabricated Cmb. Gravmag System? 12108 | -5/Factory | Fabricated Cmb. Gravmag System? 12244 | -5/Factory | Fabricated Lgt. Antimatter Cannon? 12317 | -5/Factory | Repaired Prc. Rocket Launcher? 12490 | -5/Factory | Build established: Hacker-Mutant 12701 | -5/Factory | Fabricated Cmb. Gravmag System? 12900 | -5/Factory | Entered Upper Caves 13114 | -5/Upper Caves | Encountered a Warlord checkpoint 13296 | -5/Upper Caves | Attracted the attention of an 0b10 checkpoint 13465 | -5/Upper Caves | Build established: Machinist-Scout 13507 | -5/Upper Caves | Lost 4 allies 13673 | -5/Upper Caves | Discovered new exit (range 15) 13677 | -5/Upper Caves | Learned location of Warlord (-4) 13692 | -5/Upper Caves | Learned Factory interactive machine intel 13793 | -5/Upper Caves | Identified exit to Upper Caves 13806 | -5/Upper Caves | Entered another Upper Caves area 13819 | -5/Upper Caves | Learned 4 Factory zone layouts 13863 | -5/Upper Caves | Learned location of 1 exit from Factory 14051 | -5/Upper Caves | Learned location of 1 exit from Factory 14100 | -5/Upper Caves | Build established: Hacker-Scout 14222 | -5/Upper Caves | Discovered new exit (range 5) 14228 | -5/Upper Caves | Identified exit to Zhirov 14245 | -5/Upper Caves | Entered Zhirov 14245 | -5/Zhirov | Discovered new exit (range 3) 14256 | -5/Zhirov | Met Zhirov 14269 | -5/Zhirov | Learned location of Quarantine (-2) 14269 | -5/Zhirov | Learned location of Testing (-3) 14269 | -5/Zhirov | Learned location of Command (-1) 14273 | -5/Zhirov | Zhirov requested help retrieving the SGEMP Prototype 14282 | -5/Zhirov | Found Alien Artifact 14282 | -5/Zhirov | Identified Integrated Reactor 14282 | -5/Zhirov | Installed Integrated Reactor, increased core energy generation (+10) 14338 | -5/Zhirov | Found Alien Artifact 14362 | -5/Zhirov | Identified exit to Proximity Caves 14418 | -5/Zhirov | Entered Proximity Caves 14875 | -4/Proximity Caves | Discovered new exit (range 5) 14877 | -4/Proximity Caves | Identified exit to Factory 14905 | -4/Proximity Caves | Entered Factory 14905 | -4/Factory | Evolved 2 slots: Power x1, Propulsion x1 14906 | -4/Factory | Identified exit to Research 14906 | -4/Factory | Identified exit to Upper Caves 14908 | -4/Factory | Loaded intel: 52 interactive machine locations 15214 | -4/Factory | Discovered exit to Research (range 15) 15244 | -4/Factory | Repaired Broken Adv. Powered Armor? 15361 | -4/Factory | Garrison activated, responded to threat 15532 | -4/Factory | Discovered exit to Research (range 16) 15639 | -4/Factory | Discovered exit to Research (range 15) 15776 | -4/Factory | Build established: Hacker-Mutant 15879 | -4/Factory | Found Com. Tesla Bomb Launcher 15912 | -4/Factory | Fabricated Cld. Gravmag System? 16079 | -4/Factory | Lost 6 parts (1n4u1w) 16298 | -4/Factory | Fabricated Lgt. Antimatter Cannon? 16405 | -4/Factory | First assault squad dispatched 16427 | -4/Factory | Fabricated Cld. Gravmag System? 16443 | -4/Factory | Fabricated Cld. Gravmag System? 16447 | -4/Factory | Repaired Cmb. Gravmag System? 16536 | -4/Factory | Build established: Machinist-Scout 16593 | -4/Factory | Repaired Cmb. Gravmag System? 16655 | -4/Factory | Search patrols dispatched 16720 | -4/Factory | Fabricated Cld. Gravmag System? 16773 | -4/Factory | Fabricated Assault Drone Bay? 16825 | -4/Factory | Entered Upper Caves 16875 | -4/Upper Caves | Acquired the password to a Derelict Tinkerer's latest research 16899 | -4/Upper Caves | Spotted B-86 Titan 17254 | -4/Upper Caves | Discovered new exit (range 10) 17258 | -4/Upper Caves | Identified exit to Upper Caves 17264 | -4/Upper Caves | Entered another Upper Caves area 17282 | -4/Upper Caves | Discovered exit to Research (range 8) 17302 | -4/Upper Caves | Learned Research garrison access intel 17691 | -4/Upper Caves | Discovered new exit (range 6) 17713 | -4/Upper Caves | Identified exit to Warlord 17713 | -4/Upper Caves | Entered Warlord 17816 | -4/Warlord | Found Prototype Special Weapon 17816 | -4/Warlord | Identified RU-N14's Throwing Claymores v3 17964 | -4/Warlord | Visited the Vortex Lab 17965 | -4/Warlord | Found Prototype Energy Gun 17965 | -4/Warlord | Identified Vortex Shotgun 17969 | -4/Warlord | Found Prototype Energy Gun 17969 | -4/Warlord | Identified Vortex Rifle 17977 | -4/Warlord | Found Vortex Rifle 17985 | -4/Warlord | Warlord's base attacked by MAIN.C 18035 | -4/Warlord | Met Warlord 18047 | -4/Warlord | Found Prototype Processor 18047 | -4/Warlord | Identified Exp. Armor Integrity Analyzer 18050 | -4/Warlord | Found Prototype Device 18050 | -4/Warlord | Identified Exp. Cloaking Device 18054 | -4/Warlord | Found Prototype Reactor 18054 | -4/Warlord | Identified Vortex Chain Reactor 18088 | -4/Warlord | Spotted B-86 Titan 18097 | -4/Warlord | Allies destroyed B-86 Titan 18173 | -4/Warlord | Destroyed 9 combat bots 18190 | -4/Warlord | Lost 3 allies 18201 | -4/Warlord | Found RU-N14's Throwing Claymores v3 18290 | -4/Warlord | Lost 5 allies 18291 | -4/Warlord | Warlord forces counterattacked 18332 | -4/Warlord | Spotted B-90 Cyclops 18340 | -4/Warlord | Spotted Striker 18340 | -4/Warlord | Spotted Striker 18343 | -4/Warlord | Destroyed Striker 18347 | -4/Warlord | Destroyed B-90 Cyclops 18349 | -4/Warlord | Destroyed Striker 18370 | -4/Warlord | Destroyed 8 combat bots 18371 | -4/Warlord | Found RU-N14's Throwing Claymores v3 18375 | -4/Warlord | Lost 6 allies 18437 | -4/Warlord | Lost 8 allies 18471 | -4/Warlord | Discovered new exit (range 14) 18477 | -4/Warlord | Identified exit to Proximity Caves 18501 | -4/Warlord | Entered Proximity Caves 18501 | -3/Proximity Caves | Accompanied by 2 allies 18657 | -3/Proximity Caves | Build established: Machinist-Ninja 18661 | -3/Proximity Caves | Lost 3 allies 18839 | -3/Proximity Caves | Discovered exit to Research (range 13) 18964 | -3/Proximity Caves | Build established: Machinist-Assassin 19205 | -3/Proximity Caves | Entered Research 19205 | -3/Research | Evolved 2 slots: Propulsion x1, Utility x1 19206 | -3/Research | Loaded intel: 3 garrison access locations 19288 | -3/Research | Found Prototype Device 19288 | -3/Research | Identified Exp. ECM Suite 19299 | -3/Research | Identified exit to Armory 19299 | -3/Research | Identified exit to Testing 19319 | -3/Research | Found Prototype Launcher 19319 | -3/Research | Identified Tactical Quantum Warhead 19405 | -3/Research | Revision forces began assault on 0b10 19476 | -3/Research | Build established: Machinist-Ninja 19633 | -3/Research | Met up with Revision 17++ 19905 | -3/Research | Research terminal network offline 19932 | -3/Research | Repaired Broken Cld. Antigrav System 19936 | -3/Research | Build established: Machinist-Scout 20001 | -3/Research | Entered Testing 20029 | -3/Testing | Protovariant out of control (PL-LKM3S41B6K) 20029 | -3/Testing | Unleashed a protovariant (PL-LKM3S41B6K) 20074 | -3/Testing | Repaired Broken Cmb. Gravmag System 20134 | -3/Testing | Spotted PL-LKM3S41B6K 20200 | -3/Testing | Found Prototype Energy Cannon 20200 | -3/Testing | Identified Disintegrator 20256 | -3/Testing | Found Prototype Launcher 20276 | -3/Testing | Found Prototype Ballistic Cannon 20276 | -3/Testing | Identified Perforator 20304 | -3/Testing | Identified Hellfire Missile Launcher 20318 | -3/Testing | Found Prototype Launcher 20398 | -3/Testing | Fabricated Cld. Linear Gravjet? 20411 | -3/Testing | Discovered new exit (range 5) 20501 | -3/Testing | Search patrols dispatched 20594 | -3/Testing | Found Prototype Energy Gun 20594 | -3/Testing | Identified Warp Gun 20670 | -3/Testing | Identified exit to Research 20692 | -3/Testing | Entered Research 20692 | -2/Research | Warlord forces began assault on 0b10 20692 | -2/Research | Evolved 2 slots: Power x1, Utility x1 20802 | -2/Research | Research machine network offline 20812 | -2/Research | Discovered new exit (range 16) 20816 | -2/Research | Met up with Warlord 20819 | -2/Research | Identified Adv. Micro-nuke Launcher 20839 | -2/Research | Identified exit to Access 20887 | -2/Research | Spotted B-90 Cyclops 20993 | -2/Research | Lost 5 allies 21001 | -2/Research | Spotted Executioner 21105 | -2/Research | Discovered exit to Access (range 39) 21144 | -2/Research | Spotted Executioner 21150 | -2/Research | Borebot progress halted 21253 | -2/Research | Borebot progress halted 21324 | -2/Research | Discovered exit to Access (range 4) 21380 | -2/Research | Build established: Hacker-Ninja 21471 | -2/Research | Found Powered Armor 21488 | -2/Research | Discovered new exit (range 3) 21488 | -2/Research | Identified exit to Quarantine 21586 | -2/Research | Entered Quarantine 21621 | -2/Quarantine | Found Alien Artifact 21635 | -2/Quarantine | Cryocooling Duct disabled 21650 | -2/Quarantine | Ambient heat levels rising (+20) 21650 | -2/Quarantine | Non-combat units ordered to evacuate 21721 | -2/Quarantine | Identified Core Reset Matrix 21833 | -2/Quarantine | Found Alien Artifact 21833 | -2/Quarantine | Identified Phase Redirector 22018 | -2/Quarantine | Found Alien Artifact 22018 | -2/Quarantine | Identified Phase Armor 22025 | -2/Quarantine | Discovered exit to Access (range 8) 22044 | -2/Quarantine | Found Alien Artifact 22089 | -2/Quarantine | Entered Access 22089 | -1/Access | Evolved 2 slots: Propulsion x1, Weapon x1 22230 | -1/Access | Spotted B-99 Colossus 22308 | -1/Access | Discovered new exit (range 7) 22309 | -1/Access | Identified exit to Command 22309 | -1/Access | Entered Command 22328 | -1/Command | Disengaged cave seal 22331 | -1/Command | Welcomed Warlord to Command 22359 | -1/Command | Spotted B-99 Colossus 22404 | -1/Command | Destroyed B-99 Colossus 22423 | -1/Command | Lost 4 allies 22450 | -1/Command | Destroyed 10 combat bots 22532 | -1/Command | Phase Generator disabled 22554 | -1/Command | Disengaged cave seal 22554 | -1/Command | Derelicts emerged from the dark tunnel 22559 | -1/Command | First assault squad dispatched 22653 | -1/Command | Build established: Hacker-Sprinter 22819 | -1/Command | Spotted M Guard 22819 | -1/Command | Spotted Combat Programmer 22819 | -1/Command | Spotted Combat Programmer 22821 | -1/Command | Spotted M Guard 22836 | -1/Command | Warlord commented on Warlord statues 22852 | -1/Command | System corruption reached 10% 22853 | -1/Command | Warlord destroyed during the assault 22884 | -1/Command | Lost 6 allies 22894 | -1/Command | Lost 5 parts (1p4u) 22934 | -1/Command | All MAIN.C guards destroyed 22961 | -1/Command | Lost 6 parts (2p1n3u) 23091 | -1/Command | Identified Subatomic Replicator 23091 | -1/Command | Used Subatomic Replicator to replicate Vortex Rifle 23114 | -1/Command | Build established: Scavenger-Sprinter 23141 | -1/Command | Met MAIN.C 23141 | -1/Command | Hacked MAIN.C using A7's code 23147 | -1/Command | 0b10 Conduit disabled 23174 | -1/Command | MAIN.C activated Command garrisons 23239 | -1/Command | Lost 6 allies 23251 | -1/Command | Core integrity fell below 50% 23283 | -1/Command | Crushed by falling debris 23287 | -1/Command | Core integrity fell below 20% 23293 | -1/Command | System corruption reached 30% 23293 | -1/Command | Destroyed by G-73 Enforcer with Phase Gun Last Messages --------------- 23282_ Cmb. Linear Gravjet destroyed. 23283_ The unstable cave ceiling collapses. 23283_ Crushed by falling debris. 23283_ C-30 ARC bursts open, deploying its payload. 23283_ H-88 Terminator unfolds itself. 23283_ Penetrated by Slug. 23285_ Cmb. Linear Gravjet destroyed. 23285_ Slug penetrates Heavy Barrier. 23285_ Cmb. Linear Gravjet destroyed. 23285_ Slug penetrates Reinforced Barrier. 23285_ Penetrated by Slug. 23285_ Adv. Cooling System destroyed. 23287_ Penetrated by Slug. 23287_ Cmb. Linear Gravjet destroyed. 23288_ Slug penetrates P-80 Master. 23288_ Penetrated by Slug. 23289_ Gravity Flail destroyed. 23290_ Adv. Hacking Suite destroyed. 23290_ Critical hit (Blast). Map ----- +----------------------------------------------------+ | ?????????????????????????????????????????????????? | | ?????????????????????????????????????????????????? | | ?????????????????????????????????????????????????? | | ?????????????????????????????????????????????????? | | ?????????????????????????????????????????????????? | | ?????????????????????????????????????????????????? | | ???????????????????????????#####################?? | | ???????????????????????????"""""" "" " #?? | | ???????????????????????????" "" #?? | | ?????????????????????????#""""" "" !*### | | ??????????????????????????""""""""""" =%+[= | | ?????????????????????????#" " !=[[/%* | | ?????????????????????????#"" """"" %% !/=[ | | ?????????????????????????#"" """"" [%=%### | | ?????????????????????????# " """"" %! #?? | | ?????????????????????????# " % [ #?? | | ?????????????????????????# " %% % "#?? | | ?????????????????????????#"""" g """"""#?? | | ?????????????????????????#"" = p% """""""#?? | | ?????????????????????????# %% % """"""""??? | | ?????????????????????????# ph " " ????? | | ?????????????????????????# hh" " " ????? | | ?????????????????????????" g " " """" "???? | | ?????????????????????????"% " " " """"???? | | ????????????????????????"" ] " " ??????? | | ????????????????????????#@ ! """""" ???????? | | ???????????????????????# # % """ " """"??????? | | ???????????????????????###% """ " "?????????? | | ?????????????????????????###############?????????? | | ?????????????????????????????????????????????????? | | ?????????????????????????????????????????????????? | | ?????????????????????????????????????????????????? | | ?????????????????????????????????????????????????? | | ?????????????????????????????????????????????????? | | ??????????????H??????????????????????????????????? | | ?????????????????????????????????????????????????? | | ?????????????????????????????????????????????????? | | ?????????????????????????????????????????????????? | | ?????????????????????????????????????????????????? | | ?????????????????????????????????????????????????? | | ?????????????????????????????????????????????????? | | ?????????????????????????????????????????????????? | | ?????????????????????????????????????????????????? | | ?????????????????????????????????????????????????? | | ?????????????????????????????????????????????????? | | ?????????????????????????????????????????????????? | | ?????????????????????????????????????????????????? | | ?????????????????????????????????????????????????? | | ?????????????????????????????????????????????????? | | ?????????????????????????????????????????????????? | +----------------------------------------------------+ Best States ------------- Heat Dissipation 114 Energy Generation 85 Energy Capacity 790 Matter Stores 825 Matter Capacity 900 Sight Range 16 Robot Scan Range 20 Terrain Scan Range 24 Terrain Scan Density 110 ECM Strength 3 Cloak Strength 4 Additional Mass Support 6 Armor Coverage 1025 Propulsion Shielding 33 Utility Shielding 66 Weapon Shielding 66 Point Defense Rating 320 Phase Shifting 15 Evasion (%) 74 Target Analysis 8 Kinecelleration 30 Offensive Hacking 38 Defensive Hacking 28 Authchip Count 3 Trap Extractor Capacity 8 Item Schematics ----------------- Lrg. Storage Unit | -10/Materials | Hacked Cmb. Airjet | -7/Factory | Hacked Cld. Airjet | -6/Factory | Hacked Gyrokinetic Inverter | -6/Factory | Hacked Lgt. Antimatter Cannon | -6/Hub_04(d) | Hacked Cld. Aerolev Unit | -5/Factory | Hacked Exp. Sensor Array | -5/Factory | Scanalyzed Adv. Powered Armor | -5/Factory | Scanalyzed Centrium Medium Armor Plating | -5/Factory | Scanalyzed Cmb. Gravmag System | -5/Factory | Scanalyzed Adv. Cryofiber Web | -5/Factory | Hacked Adv. Plasma Cannon | -5/Factory | Hacked Assault Drone Bay | -5/Zhirov | Free Exp. Heat Sink | -5/Zhirov | Free Exp. Optical Array | -5/Zhirov | Free Imp. Arc Thrower | -5/Zhirov | Free Adv. Force Field | -4/Factory | Hacked Cld. Gravmag System | -4/Factory | Hacked Cld. Antigrav System | -3/Research | Scanalyzed Cld. Linear Gravjet | -3/Testing | Hacked Exp. Power Amplifier | -3/Testing | Archive Exp. Propulsion Shielding | -3/Testing | Hacked Robot Schematics ------------------ G-67 Veteran | -3/Testing | Archive Fabricated ------------ Cmb. Airjet | x2 | -7/Factory Cmb. Airjet | x2 | -7/Factory Cld. Airjet | x1 | -6/Factory | Authchip Cld. Airjet | x1 | -6/Factory | Authchip Adv. Powered Armor | x1 | -5/Factory | Authchip Cmb. Gravmag System | x2 | -5/Factory | Authchip Cmb. Gravmag System | x2 | -5/Factory | Authchip Lgt. Antimatter Cannon | x1 | -5/Factory | Authchip Cmb. Gravmag System | x2 | -5/Factory | Authchip Cld. Gravmag System | x1 | -4/Factory | Authchip Lgt. Antimatter Cannon | x1 | -4/Factory | Authchip Cld. Gravmag System | x1 | -4/Factory | Authchip Cld. Gravmag System | x1 | -4/Factory | Authchip Cld. Gravmag System | x1 | -4/Factory | Authchip Assault Drone Bay | x1 | -4/Factory Cld. Linear Gravjet | x1 | -3/Testing Alien Tech Used ----------------- Integrated Reactor Phase Redirector Phase Armor Subatomic Replicator Achievements -------------- Poison In The Code Challenges ------------ None Game ------ Seed ImprovedMiningRipper Manual? 0 Play Time 09:12:21 Cumulative 1085.4 hours Start 2024.04.19 @ 20:17:08 End 2024.04.20 @ 22:54:08 Sessions 11 Manual Loads 0 Difficulty Rogue Special Mode None Game No. 231 Rogue 199 Adventurer 31 Explorer 1 Win Type - Total 49 Types 33/1/7/7/0/0/1/0/0 Lore% 85 Gallery% 90 Achievement% 81 Wizard Run 0 Options --------- Layout 1 ASCII 0 Keyboard 0 Movement Arrows Keybinds 0 Fullscreen 1 Font 24/Terminus Map View 50x40 Zoom Use 0% Tactical HUD 1 Map Filters NONE Filters NONE Steam 1 RUN: c3c7d5b7-5648-4d67-a10d-e95377f0ee01